fUSD/lending_fUSD_20250410
["ID","MTS","AMOUNT","RATE_DAILY","PERIOD"]
[357642739,1744263106320,-500.0,0.00040547,2]
[357642740,1744263106330,-708.54,0.00040547,2]
[357642741,1744263106340,-795.01,0.00040547,2]
[357642742,1744263106350,-500.0,0.00040547,2]
[357642743,1744263106359,-658.97,0.00040547,2]
[357642744,1744263106371,-993.37,0.00040547,2]
[357642745,1744263106381,-1632.03,0.00040547,2]
[357642746,1744263106391,-594.56,0.00040547,2]
[357642747,1744263106400,-500.0,0.00040547,2]
[357642748,1744263106410,-500.0,0.00040547,2]
[357642749,1744263106420,-578.26,0.00040547,2]
[357642750,1744263106429,-1083.25,0.00040547,2]
[357642751,1744263106439,-964.94,0.00040547,2]
[357642752,1744263106449,-500.0,0.00040547,2]
[357642753,1744263106458,-500.0,0.00040547,2]
[357642754,1744263106467,-1000.0,0.00040547,2]
[357642755,1744263106477,-1105.1,0.00040547,2]
[357642756,1744263106486,-663.92,0.00040547,2]
[357642757,1744263106496,-854.96,0.00040547,2]
[357642758,1744263106505,-500.0,0.00040547,2]
[357642759,1744263106515,-937.5,0.00040547,2]
[357642760,1744263106524,-500.0,0.00040547,2]
[357642761,1744263106534,-479.85756926,0.00040547,2]
[357642762,1744263106543,-500.0,0.00040547,2]
[357642763,1744263106552,-782.72,0.00040547,2]
[357642764,1744263106561,-500.0,0.00040547,2]
[357642765,1744263106571,-500.0,0.00040547,2]
[357642766,1744263106581,-500.0,0.00040547,2]
[357642767,1744263106591,-500.0,0.00040547,2]
[357642768,1744263106600,-500.0,0.00040547,2]
[357642769,1744263106610,-740.93,0.00040547,2]
[357642770,1744263106619,-1260.52,0.00040547,2]
[357642771,1744263106629,-905.18,0.00040547,2]
[357642772,1744263106638,-500.0,0.00040547,2]
[357642773,1744263106648,-500.0,0.00040547,2]
[357642774,1744263106657,-500.0,0.00040547,2]
[357642775,1744263106666,-1750.92,0.00040547,2]
[357642776,1744263106675,-699.82,0.00040547,2]
[357642777,1744263106685,-1065.92,0.00040547,2]
[357642778,1744263106694,-500.0,0.00040547,2]
[357642779,1744263106703,-553.41,0.00040547,2]
[357642780,1744263106713,-500.0,0.00040547,2]
[357642781,1744263106722,-500.0,0.00040547,2]
[357642782,1744263106731,-500.0,0.00040547,2]
[357642783,1744263106741,-500.0,0.00040547,2]
[357642784,1744263106750,-2100.96,0.00040547,2]
[357642785,1744263106759,-500.0,0.00040547,2]
[357642786,1744263106768,-506.38,0.00040547,2]
[357642787,1744263106778,-500.0,0.00040547,2]
[357642788,1744263106788,-500.0,0.00040547,2]
[357642789,1744263106797,-699.01,0.00040547,2]
[357642790,1744263106806,-619.1,0.00040547,2]
[357642791,1744263106816,-618.83,0.00040547,2]
[357642792,1744263106825,-1260.45,0.00040547,2]
[357642793,1744263106835,-500.0,0.00040547,2]
[357642794,1744263106844,-500.0,0.00040547,2]
[357642795,1744263106854,-500.0,0.00040547,2]
[357642796,1744263106863,-629.12,0.00040547,2]
[357642797,1744263106873,-500.0,0.00040547,2]
[357642798,1744263106882,-500.0,0.00040547,2]
[357642799,1744263106892,-901.87,0.00040547,2]
[357642800,1744263106901,-1535.2,0.00040547,2]
[357642801,1744263106911,-500.0,0.00040547,2]
[357642802,1744263106920,-2036.28,0.00040547,2]
[357642803,1744263106929,-500.0,0.00040547,2]
[357642804,1744263106939,-592.98,0.00040547,2]
[357642805,1744263106948,-1592.0,0.00040547,2]
[357642806,1744263106957,-547.28,0.00040547,2]
[357642807,1744263106967,-913.24,0.00040547,2]
[357642808,1744263106977,-522.51,0.00040547,2]
[357642809,1744263106986,-500.0,0.00040547,2]
[357642810,1744263106995,-500.0,0.00040547,2]
[357642811,1744263107004,-500.0,0.00040547,2]
[357642812,1744263107014,-1171.35,0.00040547,2]
[357642813,1744263107023,-500.0,0.00040547,2]
[357642814,1744263107032,-1033.06,0.00040547,2]
[357642815,1744263107042,-1595.19,0.00040547,2]
[357642816,1744263107052,-500.0,0.00040547,2]
[357642817,1744263107061,-500.0,0.00040547,2]
[357642818,1744263107071,-500.0,0.00040547,2]
[357642819,1744263107081,-500.0,0.00040547,2]
[357642820,1744263107091,-500.0,0.00040547,2]
[357642821,1744263107101,-584.7,0.00040547,2]
[357642822,1744263107111,-1947.41,0.00040547,2]
[357642823,1744263107120,-500.0,0.00040547,2]
[357642824,1744263107130,-500.0,0.00040547,2]
[357642825,1744263107139,-500.0,0.00040547,2]
[357642826,1744263107148,-926.43,0.00040547,2]
[357642827,1744263107157,-500.0,0.00040547,2]
[357642828,1744263107167,-500.0,0.00040547,2]
[357642829,1744263107176,-500.0,0.00040547,2]
[357642830,1744263107186,-610.03,0.00040547,2]
[357642831,1744263107195,-981.36,0.00040547,2]
[357642832,1744263107204,-500.0,0.00040547,2]
[357642833,1744263107213,-793.73,0.00040547,2]
[357642834,1744263107223,-683.98,0.00040547,2]
[357642835,1744263107232,-727.92,0.00040547,2]
[357642836,1744263107241,-500.0,0.00040547,2]
[357642837,1744263107250,-165.40168,0.00040547,14]
[357642838,1744263107260,-573.05,0.00040547,2]
[357642839,1744263107269,-653.48,0.00040547,2]
[357642840,1744263107279,-500.0,0.00040547,2]
[357642841,1744263107288,-450.18818275,0.00040547,2]
[357642842,1744263107297,-151.0,0.00040547,14]
[357642843,1744263107306,-872.19,0.00040547,2]
[357642844,1744263107316,-151.0,0.00040547,14]
[357642845,1744263107325,-585.0,0.00040547,2]
[357642846,1744263107334,-500.0,0.00040547,2]
[357642847,1744263107344,-578.0,0.00040547,2]
[357642848,1744263107353,-1098.43,0.00040547,2]
[357642849,1744263107363,-557.08,0.00040547,2]
[357642850,1744263107374,-500.0,0.00040547,2]
[357642851,1744263107384,-500.0,0.00040547,2]
[357642852,1744263107394,-500.0,0.00040547,2]
[357642853,1744263107403,-775.81,0.00040547,2]
[357642854,1744263107414,-500.0,0.00040547,2]
[357642855,1744263107423,-500.0,0.00040547,2]
[357642856,1744263107432,-827.44,0.00040547,2]
[357642857,1744263107441,-500.0,0.00040547,2]
[357642858,1744263107454,-2624.4,0.00040547,2]
[357642859,1744263107464,-2889.02,0.00040547,2]
[357642860,1744263107474,-500.0,0.00040547,2]
[357642861,1744263107483,-500.0,0.00040547,2]
[357642862,1744263107493,-500.0,0.00040547,2]
[357642863,1744263107502,-595.49,0.00040547,2]
[357642864,1744263107512,-1057.22,0.00040547,2]
[357642865,1744263107522,-547.12,0.00040547,2]
[357642866,1744263107531,-500.0,0.00040547,2]
[357642867,1744263107540,-1644.09,0.00040547,2]
[357642868,1744263107550,-535.22,0.00040547,2]
[357642869,1744263107560,-727.43,0.00040547,2]
[357642870,1744263107570,-799.77,0.00040547,2]
[357642871,1744263107579,-538.37163551,0.00040547,2]
[357642872,1744263107588,-959.4,0.00040547,2]
[357642873,1744263107598,-1648.43,0.00040547,2]
[357642874,1744263107607,-738.51,0.00040547,2]
[357642875,1744263107617,-608.9,0.00040547,2]
[357642876,1744263107626,-500.0,0.00040547,2]
[357642877,1744263107636,-699.08,0.00040547,2]
[357642878,1744263107645,-885.56,0.00040547,2]
[357642879,1744263107655,-624.37,0.00040547,2]
[357642880,1744263107664,-500.0,0.00040547,2]
[357642881,1744263107674,-1033.25,0.00040547,2]
[357642882,1744263107683,-2525.7,0.00040547,2]
[357642883,1744263107693,-552.95089922,0.00040547,2]
[357642884,1744263107702,-1305.17,0.00040547,2]
[357642885,1744263107712,-500.0,0.00040547,2]
[357642886,1744263107722,-500.0,0.00040547,2]
[357642887,1744263107731,-571.02,0.00040547,2]
[357642888,1744263107741,-500.0,0.00040547,2]
[357642889,1744263107751,-917.16,0.00040547,2]
[357642890,1744263107760,-912.29,0.00040547,2]
[357642891,1744263107770,-500.0,0.00040547,2]
[357642892,1744263107779,-552.15,0.00040547,2]
[357642893,1744263107789,-500.0,0.00040547,2]
[357642894,1744263107799,-500.0,0.00040547,2]
[357642895,1744263107808,-500.0,0.00040547,2]
[357642896,1744263107818,-500.0,0.00040547,2]
[357642897,1744263107827,-508.79,0.00040547,2]
[357642898,1744263107836,-500.03,0.00040547,2]
[357642899,1744263107845,-1408.64,0.00040547,2]
[357642900,1744263107855,-660.288913,0.00040547,14]
[357642901,1744263107865,-660.288913,0.00040547,14]
[357642902,1744263107875,-1556.73,0.00040547,2]
[357642903,1744263107884,-1635.81,0.00040547,2]
[357642904,1744263107895,-933.27,0.00040547,2]
[357642905,1744263107904,-1187.18,0.00040547,2]
[357642906,1744263107914,-833.81,0.00040547,2]
[357642907,1744263107923,-985.06,0.00040547,2]
[357642908,1744263107932,-2294.31,0.00040547,2]
[357642909,1744263107942,-2356.85,0.00040547,2]
[357642910,1744263107951,-986.77,0.00040547,2]
[357642911,1744263107961,-1743.374356,0.00040547,2]
[357642912,1744263107970,-2875.93,0.00040547,2]
[357642913,1744263107980,-500.0,0.00040547,2]
[357642914,1744263107990,-1214.83,0.00040547,2]
[357642915,1744263107999,-1153.71,0.00040547,2]
[357642916,1744263108009,-180.186855,0.00040547,2]
[357642917,1744263108019,-957.89,0.00040547,2]
[357642918,1744263108028,-500.0,0.00040547,2]
[357642919,1744263108038,-4529.73,0.00040547,2]
[357642920,1744263108047,-2077.03,0.00040547,2]
[357642921,1744263108205,-500.0,0.00040547,2]
[357642922,1744263108215,-2584.34,0.00040547,2]
[357642923,1744263108224,-500.0,0.00040547,2]
[357642924,1744263108234,-870.1,0.00040547,2]
[357642925,1744263108243,-946.03,0.00040547,2]
[357642926,1744263108253,-1925.56,0.00040547,2]
[357642927,1744263108262,-1077.99,0.00040547,2]
[357642928,1744263108271,-500.0,0.00040547,2]
[357642929,1744263108281,-511.65,0.00040547,2]
[357642930,1744263108290,-4644.2,0.00040547,2]
[357642931,1744263108299,-633.69,0.00040547,2]
[357642932,1744263108309,-500.0,0.00040547,2]
[357642933,1744263108319,-1112.85,0.00040547,2]
[357642934,1744263108328,-1029.45,0.00040547,2]
[357642935,1744263108338,-500.0,0.00040547,2]
[357642936,1744263108347,-647.69,0.00040547,2]
[357642937,1744263108357,-3585.681999,0.00040547,2]
[357642938,1744263108367,-500.0,0.00040547,2]
[357642939,1744263108381,-2403.73,0.00040547,2]
[357642940,1744263108390,-909.21,0.00040547,2]
[357642941,1744263108400,-1120.09,0.00040547,2]
[357642942,1744263108409,-1686.73,0.00040547,2]
[357642943,1744263108420,-592.10391308,0.00040547,2]
[357642944,1744263108430,-879.89,0.00040547,2]
[357642945,1744263108439,-808.95,0.00040547,2]
[357642946,1744263108449,-832.56,0.00040547,2]
[357642947,1744263108459,-874.26,0.00040547,2]
[357642948,1744263108469,-1157.43,0.00040547,2]
[357642949,1744263108479,-718.2,0.00040547,2]
[357642950,1744263108488,-581.124785,0.00040547,2]
[357642951,1744263108497,-500.0,0.00040547,2]
[357642952,1744263108507,-1407.72,0.00040547,2]
[357642953,1744263108517,-1039.49,0.00040547,2]
[357642954,1744263108526,-7215.56,0.00040547,2]
[357642955,1744263108536,-500.0,0.00040547,2]
[357642956,1744263108545,-575.22,0.00040547,2]
[357642957,1744263108554,-3881.0,0.00040547,2]
[357642958,1744263108564,-1613.58,0.00040547,2]
[357642959,1744263108573,-898.25,0.00040547,2]
[357642960,1744263108583,-772.7,0.00040547,2]
[357642961,1744263108601,-500.0,0.00040547,2]
[357642962,1744263108614,-500.0,0.00040547,2]
[357642963,1744263108624,-1979.36,0.00040547,2]
[357642964,1744263108634,-8078.39,0.00040547,2]
[357642965,1744263108645,-42424.6,0.00040547,2]
[357642966,1744263108655,-690.89,0.00040547,2]
[357642967,1744263108666,-500.0,0.00040547,2]
[357642968,1744263108676,-1112.76,0.00040547,2]
[357642969,1744263108687,-1039.69,0.00040547,2]
[357642970,1744263108697,-500.0,0.00040547,2]
[357642971,1744263108707,-1185.95,0.00040547,2]
[357642972,1744263108717,-634.68,0.00040547,2]
[357642973,1744263108727,-518.49,0.00040547,2]
[357642974,1744263108737,-500.0,0.00040547,2]
[357642975,1744263108747,-1287.64,0.00040547,2]
[357642976,1744263108757,-965.31,0.00040547,2]
[357642977,1744263108767,-910.06,0.00040547,2]
[357642978,1744263108777,-1004.75,0.00040547,2]
[357642979,1744263108787,-1961.21,0.00040547,2]
[357642980,1744263108796,-500.0,0.00040547,2]
[357642981,1744263108806,-500.0,0.00040547,2]
[357642982,1744263108816,-1538.53,0.00040547,2]
[357642983,1744263108831,-599.76,0.00040547,2]
[357642984,1744263108841,-500.0,0.00040547,2]
[357642985,1744263108851,-1367.6,0.00040547,2]
[357642986,1744263108861,-500.0,0.00040547,2]
[357642987,1744263108871,-877.44,0.00040547,2]
[357642988,1744263108881,-991.6,0.00040547,2]
[357642989,1744263108891,-2578.25,0.00040547,2]
[357642990,1744263108901,-500.0,0.00040547,2]
[357642991,1744263108911,-693.73,0.00040547,2]
[357642992,1744263108921,-629.13,0.00040547,2]
[357642993,1744263108932,-500.0,0.00040547,2]
[357642994,1744263108942,-685.43,0.00040547,2]
[357642995,1744263108952,-204.07026462,0.00040547,2]
[357642996,1744263108962,-1216.37,0.00040547,2]
[357642997,1744263108972,-500.0,0.00040547,2]
[357642998,1744263108982,-500.0,0.00040547,2]
[357642999,1744263108993,-1214.66,0.00040547,2]
[357643000,1744263109003,-500.0,0.00040547,2]
[357643001,1744263109013,-4565.3,0.00040547,2]
[357643002,1744263109024,-1048.07,0.00040547,2]
[357643003,1744263109034,-500.0,0.00040547,2]
[357643004,1744263109044,-1039.16,0.00040547,2]
[357643005,1744263109053,-1216.68,0.00040547,2]
[357643006,1744263109064,-500.0,0.00040547,2]
[357643007,1744263109075,-1205.91,0.00040547,2]
[357643008,1744263109086,-2916.32,0.00040547,2]
[357643009,1744263109097,-4891.3,0.00040547,2]
[357643010,1744263109107,-2357.14,0.00040547,2]
[357643011,1744263109117,-632.73,0.00040547,2]
[357643012,1744263109128,-1190.59,0.00040547,2]
[357643013,1744263109137,-500.0,0.00040547,2]
[357643014,1744263109147,-757.09,0.00040547,2]
[357643015,1744263109158,-603.06,0.00040547,2]
[357643016,1744263109169,-812.34,0.00040547,2]
[357643017,1744263109179,-573.66,0.00040547,2]
[357643018,1744263109189,-23785.76,0.00040547,2]
[357643019,1744263109199,-500.0,0.00040547,2]
[357643020,1744263109209,-2083.77,0.00040547,2]
[357643021,1744263109219,-1281.13,0.00040547,2]
[357643022,1744263109229,-500.0,0.00040547,2]
[357643023,1744263109239,-1005.53,0.00040547,2]
[357643024,1744263109249,-745.91,0.00040547,2]
[357643025,1744263109259,-2143.43,0.00040547,2]
[357643026,1744263109268,-1089.01,0.00040547,2]
[357643027,1744263109278,-1159.32,0.00040547,2]
[357643028,1744263109287,-573.78,0.00040547,2]
[357643029,1744263109298,-500.0,0.00040547,2]
[357643030,1744263109307,-646.02,0.00040547,2]
[357643031,1744263109317,-500.0,0.00040547,2]
[357643032,1744263109327,-566.91,0.00040547,2]
[357643033,1744263109336,-1218.11,0.00040547,2]
[357643034,1744263109345,-500.0,0.00040547,2]
[357643035,1744263109355,-500.0,0.00040547,2]
[357643036,1744263109366,-29122.28,0.00040547,2]
[357643037,1744263109380,-500.0,0.00040547,2]
[357643038,1744263109390,-500.0,0.00040547,2]
[357643039,1744263109400,-865.9,0.00040547,2]
[357643040,1744263109410,-516.84,0.00040547,2]
[357643041,1744263109421,-500.0,0.00040547,2]
[357643042,1744263109431,-695.78,0.00040547,2]
[357643043,1744263109440,-819.97,0.00040547,2]
[357643044,1744263109450,-2739.29,0.00040547,2]
[357643045,1744263109461,-1018.51,0.00040547,2]
[357643046,1744263109470,-500.0,0.00040547,2]
[357643047,1744263109480,-575.63,0.00040547,2]
[357643048,1744263109489,-500.0,0.00040547,2]
[357643049,1744263109499,-500.0,0.00040547,2]
[357643050,1744263109509,-1378.7,0.00040547,2]
[357643051,1744263109518,-1133.4,0.00040547,2]
[357643052,1744263109528,-500.0,0.00040547,2]
[357643053,1744263109538,-500.0,0.00040547,2]
[357643054,1744263109547,-832.63,0.00040547,2]
[357643055,1744263109557,-21395.75,0.00040547,2]
[357643056,1744263109566,-500.0,0.00040547,2]
[357643057,1744263109575,-500.0,0.00040547,2]
[357643058,1744263109585,-500.0,0.00040547,2]
[357643059,1744263109594,-500.0,0.00040547,2]
[357643060,1744263109604,-2087.42,0.00040547,2]
[357643061,1744263109614,-1170.86,0.00040547,2]
[357643062,1744263109623,-3014.44,0.00040547,2]
[357643063,1744263109633,-500.0,0.00040547,2]
[357643064,1744263109643,-167266.55,0.00040547,2]
[357643065,1744263109652,-1973.41,0.00040547,2]
[357643066,1744263109661,-500.0,0.00040547,2]
[357643067,1744263109671,-514.89,0.00040547,2]
[357643068,1744263109680,-2641.61,0.00040547,2]
[357643069,1744263109690,-500.0,0.00040547,2]
[357643070,1744263109699,-573.09,0.00040547,2]
[357643071,1744263109708,-4651.38,0.00040547,2]
[357643072,1744263109717,-500.0,0.00040547,2]
[357643073,1744263109727,-1570.69,0.00040547,2]
[357643074,1744263109737,-500.0,0.00040547,2]
[357643075,1744263109746,-500.0,0.00040547,2]
[357643076,1744263109756,-1967.15,0.00040547,2]
[357643077,1744263109765,-401.21074748,0.00040547,2]
[357643078,1744263109775,-973.2,0.00040547,2]
[357643079,1744263109784,-500.0,0.00040547,2]
[357643080,1744263109794,-552.73,0.00040547,2]
[357643081,1744263109803,-500.0,0.00040547,2]
[357643082,1744263109813,-1133.28,0.00040547,2]
[357643083,1744263109822,-1290.575287,0.00040547,2]
[357643084,1744263109832,-535.78,0.00040547,2]
[357643085,1744263109842,-1438.14,0.00040547,2]
[357643086,1744263109852,-577.35838232,0.00040547,2]
[357643087,1744263109862,-987.76,0.00040547,2]
[357643088,1744263109872,-878.74,0.00040547,2]
[357643089,1744263109881,-208.0,0.0004058,2]
[357643090,1744263109891,-205.0,0.0004058,2]
[357643091,1744263109901,-189.14936193,0.00040721,28]
[357643092,1744263109910,-1000.0,0.00040739,5]
[357643093,1744263109920,-1000.0,0.00040804,5]
[357643094,1744263109929,-150.0,0.0004082,3]
[357643095,1744263109938,-150.0,0.0004082,3]
[357643096,1744263109948,-500.0,0.00040821,2]
[357643097,1744263109958,-500.0,0.00040821,2]
[357643098,1744263109967,-500.0,0.00040821,2]
[357643099,1744263109977,-1057.12,0.00040821,2]
[357643100,1744263109987,-500.0,0.00040821,2]
[357643101,1744263109996,-648.87,0.00040821,2]
[357643102,1744263110005,-946.59,0.00040821,2]
[357643103,1744263110015,-500.0,0.00040821,2]
[357643104,1744263110025,-534.85,0.00040821,2]
[357643105,1744263110034,-500.0,0.00040821,2]
[357643106,1744263110043,-641.6,0.00040821,2]
[357643107,1744263110053,-500.0,0.00040821,2]
[357643108,1744263110063,-500.0,0.00040821,2]
[357643109,1744263110073,-500.0,0.00040821,2]
[357643110,1744263110083,-705.12,0.00040821,2]
[357643111,1744263110092,-465.41123368,0.00040821,2]
[357643112,1744263110102,-225.96529156,0.00040821,2]
[357643113,1744263110112,-643.93,0.00040821,2]
[357643114,1744263110122,-500.0,0.00040821,2]
[357643115,1744263110298,-848.85,0.00040821,2]
[357643116,1744263110308,-644.23,0.00040821,2]
[357643117,1744263110318,-784.44,0.00040821,2]
[357643118,1744263110327,-500.0,0.00040821,2]
[357643119,1744263110336,-892.08,0.00040821,2]
[357643120,1744263110345,-500.0,0.00040821,2]
[357643121,1744263110355,-529.26,0.00040821,2]
[357643122,1744263110365,-521.54,0.00040821,2]
[357643123,1744263110375,-721.04,0.00040821,2]
[357643124,1744263110386,-524.04,0.00040821,2]
[357643125,1744263110395,-500.0,0.00040821,2]
[357643126,1744263110404,-190.55214122,0.00040821,2]
[357643127,1744263110413,-500.0,0.00040821,2]
[357643128,1744263110424,-500.0,0.00040821,2]
[357643129,1744263110434,-506.89,0.00040821,2]
[357643130,1744263110443,-600.37,0.00040821,2]
[357643131,1744263110455,-540.97,0.00040821,2]
[357643132,1744263110464,-500.0,0.00040821,2]
[357643133,1744263110473,-346.2,0.00040821,2]
[357643134,1744263110482,-500.0,0.00040821,2]
[357643135,1744263110492,-500.0,0.00040821,2]
[357643136,1744263110501,-500.0,0.00040821,2]
[357643137,1744263110510,-500.0,0.00040821,2]
[357643138,1744263110520,-564.45,0.00040821,2]
[357643139,1744263110529,-639.34,0.00040821,2]
[357643140,1744263110538,-732.06,0.00040821,2]
[357643141,1744263110547,-1095.5,0.00040821,2]
[357643142,1744263110556,-680.52,0.00040821,2]
[357643143,1744263110566,-713.03,0.00040821,2]
[357643144,1744263110576,-500.0,0.00040821,2]
[357643145,1744263110585,-500.0,0.00040821,2]
[357643146,1744263110594,-500.0,0.00040821,2]
[357643147,1744263110603,-500.0,0.00040821,2]
[357643148,1744263110613,-500.0,0.00040821,2]
[357643149,1744263110622,-500.0,0.00040821,2]
[357643150,1744263110631,-953.15,0.00040821,2]
[357643151,1744263110641,-500.0,0.00040821,2]
[357643152,1744263110650,-733.83,0.00040821,2]
[357643153,1744263110659,-500.0,0.00040821,2]
[357643154,1744263110669,-500.0,0.00040821,2]
[357643155,1744263110678,-500.0,0.00040821,2]
[357643156,1744263110688,-243.5375391,0.00040821,2]
[357643157,1744263110697,-500.0,0.00040821,2]
[357643158,1744263110706,-500.0,0.00040821,2]
[357643159,1744263110715,-1006.39,0.00040821,2]
[357643160,1744263110725,-500.0,0.00040821,2]
[357643161,1744263110734,-500.0,0.00040821,2]
[357643162,1744263110743,-500.0,0.00040821,2]
[357643163,1744263110753,-500.0,0.00040821,2]
[357643164,1744263110762,-773.01,0.00040821,2]
[357643165,1744263110772,-769.58,0.00040821,2]
[357643166,1744263110782,-1427.56,0.00040821,2]
[357643167,1744263110791,-500.0,0.00040821,2]
[357643168,1744263110800,-500.0,0.00040821,2]
[357643169,1744263110809,-541.16,0.00040821,2]
[357643170,1744263110819,-404.39774086,0.00040821,2]
[357643171,1744263110828,-1299.27,0.00040821,2]
[357643172,1744263110838,-500.0,0.00040821,2]
[357643173,1744263110848,-500.0,0.00040821,2]
[357643174,1744263110857,-708.54,0.00040821,2]
[357643175,1744263110867,-795.01,0.00040821,2]
[357643176,1744263110877,-500.0,0.00040821,2]
[357643177,1744263110886,-658.97,0.00040821,2]
[357643178,1744263110896,-993.37,0.00040821,2]
[357643179,1744263110905,-1632.03,0.00040821,2]
[357643180,1744263110914,-594.56,0.00040821,2]
[357643181,1744263110923,-500.0,0.00040821,2]
[357643182,1744263110933,-500.0,0.00040821,2]
[357643183,1744263110942,-578.26,0.00040821,2]
[357643184,1744263110951,-1083.25,0.00040821,2]
[357643185,1744263110960,-964.94,0.00040821,2]
[357643186,1744263110970,-500.0,0.00040821,2]
[357643187,1744263110980,-500.0,0.00040821,2]
[357643188,1744263110989,-1000.0,0.00040821,2]
[357643189,1744263110998,-1105.1,0.00040821,2]
[357643190,1744263111008,-663.92,0.00040821,2]
[357643191,1744263111017,-854.96,0.00040821,2]
[357643192,1744263111026,-614.09722258,0.00040821,2]
[357643193,1744263111036,-937.5,0.00040821,2]
[357643194,1744263111046,-500.0,0.00040821,2]
[357643195,1744263111055,-500.0,0.00040821,2]
[357643196,1744263111065,-782.72,0.00040821,2]
[357643197,1744263111074,-500.0,0.00040821,2]
[357643198,1744263111084,-500.0,0.00040821,2]
[357643199,1744263111095,-500.0,0.00040821,2]
[357643200,1744263111105,-500.0,0.00040821,2]
[357643201,1744263111115,-500.0,0.00040821,2]
[357643202,1744263111125,-740.93,0.00040821,2]
[357643203,1744263111134,-1260.52,0.00040821,2]
[357643204,1744263111155,-905.18,0.00040821,2]
[357643205,1744263111174,-500.0,0.00040821,2]
[357643206,1744263111194,-500.0,0.00040821,2]
[357643207,1744263111214,-500.0,0.00040821,2]
[357643208,1744263111228,-1750.92,0.00040821,2]
[357643209,1744263111249,-699.82,0.00040821,2]
[357643210,1744263111268,-1065.92,0.00040821,2]
[357643211,1744263111289,-500.0,0.00040821,2]
[357643212,1744263111307,-553.41,0.00040821,2]
[357643213,1744263111325,-500.0,0.00040821,2]
[357643214,1744263111344,-500.0,0.00040821,2]
[357643215,1744263111358,-500.0,0.00040821,2]
[357643216,1744263111379,-500.0,0.00040821,2]
[357643217,1744263111393,-2100.96,0.00040821,2]
[357643218,1744263111411,-576.69645401,0.00040821,2]
[357643219,1744263111425,-506.38,0.00040821,2]
[357643220,1744263111443,-500.0,0.00040821,2]
[357643221,1744263111461,-500.0,0.00040821,2]
[357643222,1744263111480,-699.01,0.00040821,2]
[357643223,1744263111496,-619.1,0.00040821,2]
[357643224,1744263111512,-618.83,0.00040821,2]
[357643225,1744263111528,-1260.45,0.00040821,2]
[357643226,1744263111544,-269.65423505,0.00040821,2]
[357643227,1744263111559,-500.0,0.00040821,2]
[357643228,1744263111575,-500.0,0.00040821,2]
[357643229,1744263111590,-151.0,0.00040821,14]
[357643230,1744263111605,-629.12,0.00040821,2]
[357643231,1744263111621,-500.0,0.00040821,2]
[357643232,1744263111637,-500.0,0.00040821,2]
[357643233,1744263111652,-901.87,0.00040821,2]
[357643234,1744263111668,-1535.2,0.00040821,2]
[357643235,1744263111684,-500.0,0.00040821,2]
[357643236,1744263111698,-2036.28,0.00040821,2]
[357643237,1744263111715,-500.0,0.00040821,2]
[357643238,1744263111731,-592.98,0.00040821,2]